[Event "Women Accentus DAQ Blitz 2022"]
[Site "Biel"]
[Date "2022.07.17"]
[Round "10.2"]
[White "Zhuang, Yongzhe"]
[Black "Keymer, Cecilia"]
[Result "1-0"]
[ECO "C54"]
[WhiteElo "1838"]
[BlackElo "1652"]
[Annotator "NA COMBH"]
[PlyCount "140"]
[EventDate "2022.07.17"]
[EventType "tourn"]
[EventCountry "SUI"]
[SourceTitle "playchess.com"]
[Source "ChessBase"]
[SourceQuality "1"]
[TimeControl "180+2"]

1. e4 {[%emt 0:00:02]} e5 {[%emt 0:00:00]} 2. Nf3 {[%emt 0:00:02]} Nc6 3. Bc4 {[%emt 0:00:02]} Bc5 {[%emt 0:00:01]} 4. c3 {[%emt 0:00:01]} Nf6 {[%emt 0:00:01]} 5. d3 {[%emt 0:00:02]} d6 {[%emt 0:00:01]} 6. h3 {[%emt 0:00:01]} a6 {[%emt 0:00:02]} 7. b4 {[%emt 0:00:05]} Ba7 {[%emt 0:00:02]} 8. a4 {[%emt 0:00:13]} Ne7 {[%emt 0:00:10]} 9. Bg5 {[%emt 0:00:17]} Ng6 {[%emt 0:00:06]} 10. Qb3 {[%emt 0:00:10]} O-O {[%emt 0:00:07]} 11. O-O {[%emt 0:00:03]} h6 {[%emt 0:00:05]} 12. Bd2 {[%emt 0:00:03]} Qe7 {[%emt 0:00:10]} 13. Na3 {[%emt 0:00:10]} Be6 {[%emt 0:00:10]} 14. Rfe1 {[%emt 0:00:16]} Rfe8 {[%emt 0:00:26]} 15. Rad1 {[%emt 0:00:28]} Bxc4 {[%emt 0:00:08]} 16. Nxc4 {[%emt 0:00:02]} Qe6 {[%emt 0:00:24]} 17. Qc2 {[%emt 0:00:09]} Rad8 {[%emt 0:00:09]} 18. Na5 {[%emt 0:00:12]} Qc8 {[%emt 0:00:10]} 19. Nc4 {[%emt 0:00:11]} Qe6 {[%emt 0:00:04]} 20. Ne3 {[%emt 0:00:03]} Nf4 {[%emt 0:00:26]} 21. Nf5 {[%emt 0:00:14]} N6h5 {[%emt 0:00:17]} 22. d4 {[%emt 0:00:33]} exd4 {[%emt 0:00:11]} 23. cxd4 {[%emt 0:00:03]} Qg6 {[%emt 0:00:27]} 24. N3h4 {[%emt 0:00:09]} Qe6 {[%emt 0:00:08]} 25. Qc1 {[%emt 0:00:06]} Ng6 {[%emt 0:00:03]} 26. Qc3 {[%emt 0:00:07]} c6 {[%emt 0:00:01]} 27. Qf3 {[%emt 0:00:02]} Nf6 {[%emt 0:00:02]} 28. Nxg6 {[%emt 0:00:02]} fxg6 {[%emt 0:00:02]} 29. Ng3 {[%emt 0:00:01]} Rf8 {[%emt 0:00:01]} 30. Qd3 {[%emt 0:00:03]} Nd7 {[%emt 0:00:01]} 31. Be3 {[%emt 0:00:01]} d5 {[%emt 0:00:02]} 32. e5 {[%emt 0:00:01]} Rde8 {[%emt 0:00:02]} 33. Rc1 {[%emt 0:00:02]} Rf7 {[%emt 0:00:02]} 34. b5 {[%emt 0:00:02]} axb5 {[%emt 0:00:01]} 35. axb5 {[%emt 0:00:00]} Ref8 {[%emt 0:00:01]} 36. bxc6 {[%emt 0:00:02]} bxc6 {[%emt 0:00:01]} 37. Ra1 {[%emt 0:00:01]} Bb6 {[%emt 0:00:02]} 38. Ra6 {[%emt 0:00:02]} Qe7 {[%emt 0:00:06]} 39. Rc1 {[%emt 0:00:03]} Rc8 {[%emt 0:00:03]} 40. Ra3 {[%emt 0:00:02]} Bd8 {[%emt 0:00:01]} 41. Ra7 {[%emt 0:00:01]} Qe6 {[%emt 0:00:02]} 42. Rca1 {[%emt 0:00:02]} Bb6 {[%emt 0:00:02]} 43. Rb7 {[%emt 0:00:02]} Rff8 {[%emt 0:00:04]} 44. Qa6 {[%emt 0:00:01]} Bd8 {[%emt 0:00:02]} 45. Qa7 {[%emt 0:00:02]} Rf7 {[%emt 0:00:02]} 46. Ra6 {[%emt 0:00:02]} Bg5 {[%emt 0:00:02]} 47. Bxg5 {[%emt 0:00:05]} hxg5 {[%emt 0:00:01]} 48. Ra2 {[%emt 0:00:02]} Rd8 {[%emt 0:00:02]} 49. Qa4 {[%emt 0:00:02]} Rb8 {[%emt 0:00:02]} 50. Rc7 {[%emt 0:00:02]} Nb6 {[%emt 0:00:01]} 51. Qxc6 {[%emt 0:00:02]} Qxc6 {[%emt 0:00:02]} 52. Rxc6 {[%emt 0:00:01]} Nc4 {[%emt 0:00:01]} 53. e6 {[%emt 0:00:06]} Rb1+ {[%emt 0:00:05]} 54. Kh2 {[%emt 0:00:01]} Rf8 {[%emt 0:00:01]} 55. e7 {[%emt 0:00:02]} Re8 {[%emt 0:00:02]} 56. Re6 {[%emt 0:00:03]} Rb7 {[%emt 0:00:02]} 57. Rae2 {[%emt 0:00:01]} Nd6 {[%emt 0:00:03]} 58. Rxd6 {[%emt 0:00:02]} Rexe7 {[%emt 0:00:02]} 59. Rxe7 {[%emt 0:00:01]} Rxe7 {[%emt 0:00:00]} 60. Rxd5 {[%emt 0:00:02]} Kf7 {[%emt 0:00:00]} 61. Rxg5 {[%emt 0:00:01]} Kf6 {[%emt 0:00:01]} 62. Ra5 {[%emt 0:00:02]} Rd7 {[%emt 0:00:00]} 63. d5 {[%emt 0:00:01]} Ke5 {[%emt 0:00:02]} 64. Ra6 {[%emt 0:00:03]} g5 {[%emt 0:00:02]} 65. d6 {[%emt 0:00:03]} Rxd6 {[%emt 0:00:02]} 66. Rxd6 Kxd6 67. Nf5+ {[%emt 0:00:03]} Ke6 {[%emt 0:00:01]} 68. Nxg7+ {[%emt 0:00:01]} Kf6 69. Nh5+ {[%emt 0:00:03]} Kg6 {[%emt 0:00:01]} 70. g4 {[%emt 0:00:00]} Kf7 {[%emt 0:00:03]} 1-0

[Event "Women Accentus DAQ Blitz 2022"]
[Site "Biel"]
[Date "2022.07.17"]
[Round "10.3"]
[White "Tamrazyan, Gohar"]
[Black "Sumarriva Paulin, Laura"]
[Result "1/2-1/2"]
[ECO "D00"]
[WhiteElo "1916"]
[BlackElo "1913"]
[Annotator "TA"]
[PlyCount "111"]
[EventDate "2022.07.17"]
[EventType "tourn"]
[EventCountry "SUI"]
[SourceTitle "playchess.com"]
[Source "ChessBase"]
[SourceQuality "1"]
[TimeControl "180+2"]

{[%evp 9,111,15,16,14,228,7,22,4,12,-8,0,4,0,-35,-26,-34,-16,-1,-20,-58,-57,-319,-40,-65,-47,-137,-137,-233,-87,-89,-91,-91,0,0,0,-6,41,22,37,5,5,18,65,0,0,-402,-402,-589,-687,-658,-583,-970,-906,-717,-587,-1177,-1012,-1764,-1701,-1658,-1558,-1000,-222,-214,-210,-231,-231,-220,-209,-184,-191,-184,-193,-186,-173,-156,-163,-243,0,-8,0,0,0,0,0,0,0,0,0,0,0,0,0,0,0,0,0,0,0,0,0,0,0,-29949]} 1. d4 {[%emt 0:00:01]} d5 {[%emt 0:00:01]} 2. Nc3 {[%emt 0:00:01]} Nf6 {[%emt 0:00:04]} 3. Bf4 {[%emt 0:00:01]} c5 {[%emt 0:00:02]} 4. e4 {[%emt 0:00:01]} e6 {[%emt 0:00:07]} 5. exd5 {[%emt 0:00:54]} exd5 {[%emt 0:00:03]} 6. Nf3 {[%emt 0:00:06] D00: 1 d4 d5: Unusual lines.} Nc6 $2 {[%emt 0:00:03]} (6... c4 $11) 7. Bb5 $2 {[%emt 0:00:05] [#]} ({Only move:} 7. Nb5 $1 $18 {[%cal Rb5c7]}) 7... Bd6 $146 {[%emt 0:00:28] Prevents Nc7.} ({Predecessor:} 7... Bg4 8. O-O Be7 9. dxc5 O-O 10. h3 Bh5 11. g4 Bg6 12. g5 Ne4 13. Nxd5 Bxc5 {1-0 (52) Prie,E (2493)-Doluhanova,E (2320) Montpellier 2013}) 8. Bxd6 {[%emt 0:00:11]} Qxd6 {[%emt 0:00:02]} 9. O-O {[%emt 0:00:08]} O-O {[%emt 0:00:02]} 10. dxc5 {[%emt 0:00:09]} Qxc5 {[%emt 0:00:03]} 11. Be2 {[%emt 0:00:13]} Bf5 {[%emt 0:00:07]} 12. Bd3 {[%emt 0:00:04]} Bg4 {[%emt 0:00:04]} 13. h3 {[%emt 0:00:12]} Bh5 {[%emt 0:00:01]} 14. Be2 {[%emt 0:00:02]} Rfe8 {[%emt 0:00:13]} 15. Nb5 $2 {[%emt 0:00:06][%mdl 8192] Inhibits d4.} (15. Nd2 $15) 15... Rad8 $2 {[%emt 0:00:11]} ({Better is} 15... Bxf3 $19 16. gxf3 Rad8) 16. Nbd4 $15 {[%emt 0:00:10]} Qb6 {[%emt 0:00:17]} (16... Re4 $5 {[%cal Rc6d4]} 17. c3 Rde8 $11) 17. b3 {[%emt 0:00:13]} (17. Rb1 $15) 17... Ne4 $1 $17 {[%emt 0:00:07]} 18. Qd3 {[%emt 0:00:13] Against Nc3} (18. g4 $2 Nc3 19. Qd3 Nxd4 20. Nxd4 Qxd4 $3 $19 {[%mdl 512]}) (18. Nxc6 $17 Nc3 19. Nxd8 (19. Ne7+ $2 Rxe7 20. Qd3 Nxe2+ $19) 19... Nxd1 20. Bxd1) 18... Nb4 {[%emt 0:00:07]} (18... Bxf3 $19 19. Nxf3 Ng3) 19. Qb5 {[%emt 0:00:11]} Nc3 {[%emt 0:00:31][%csl LRa2,LRb5]} 20. Qxb6 {[%emt 0:00:07]} Nxe2+ {[%emt 0:00:10]} (20... axb6 $17 21. Bd3 Bxf3 22. Nxf3 Ncxa2) 21. Nxe2 $11 {[%emt 0:00:00]} axb6 {[%emt 0:00:01]} 22. Ned4 {[%emt 0:00:05]} Re4 {[%emt 0:00:12]} (22... Bxf3 $11 23. Nxf3 Nxc2) 23. c3 {[%emt 0:00:03]} Nc6 {[%emt 0:00:11]} 24. Rae1 {[%emt 0:00:03]} Rde8 {[%emt 0:00:03]} 25. Rxe4 {[%emt 0:00:07]} Rxe4 {[%emt 0:00:12]} (25... dxe4 $11 26. Re1 f6 27. Nxc6 bxc6) 26. Rd1 {[%emt 0:00:05]} ({White should try} 26. g4 $14 Bg6 27. Kg2) 26... Nxd4 {[%emt 0:00:12]} 27. Rxd4 {[%emt 0:00:08][%mdl 8192]} (27. cxd4 $11 Bxf3 28. gxf3) 27... Bxf3 $19 {[%emt 0:00:03]} 28. gxf3 {[%emt 0:00:04]} (28. Rd3 {was called for.} Re1+ 29. Kh2) 28... Rxd4 {[%emt 0:00:01]} 29. cxd4 $11 {[%emt 0:00:00][%mdl 4096] Endgame KP-KP} Kf8 {[%emt 0:00:01]} 30. Kf1 {[%emt 0:00:02]} Ke7 {[%emt 0:00:01]} 31. Ke2 {[%emt 0:00:01]} Ke6 {[%emt 0:00:04] And now ...Kf5 would win.} 32. Kd3 {[%emt 0:00:03]} Kf5 {[%emt 0:00:01] Strongly threatening ...Kf4.} 33. Kc3 {[%emt 0:00:04]} Kf4 {[%emt 0:00:01]} 34. Kb4 {[%emt 0:00:01]} Kxf3 {[%emt 0:00:02]} 35. Kb5 {[%emt 0:00:00]} Kxf2 $2 {[%emt 0:00:01]} (35... Ke4 36. Kxb6 Kxd4 37. Kxb7 Kc3) 36. Kxb6 $19 {[%emt 0:00:01]} Ke3 {[%emt 0:00:01]} 37. Kxb7 {[%emt 0:00:04] [#]} f5 $1 {[%emt 0:00:02]} (37... Kxd4 38. a4 f5 39. a5 $17) 38. a4 {[%emt 0:00:01]} f4 {[%emt 0:00:00]} (38... Kxd4 39. a5 f4 40. a6 $17) 39. a5 {[%emt 0:00:00]} f3 (39... Kxd4 40. a6 f3 41. a7 $17) 40. a6 f2 {[%emt 0:00:02]} (40... Kxd4 41. a7 f2 42. a8=Q $17) 41. a7 {[%emt 0:00:01]} f1=Q {[%emt 0:00:03]} ({Weaker is} 41... Kxd4 42. a8=Q f1=Q 43. Qa4+ Kc3 44. Qc6+ Kxb3 45. Qxd5+ Qc4 46. Qf3+ Qc3 47. Qd5+ Kb2 48. h4 $17) 42. a8=Q $17 {[%emt 0:00:02] KQ-KQ} Qf7+ {[%emt 0:00:09]} (42... Kxd4 43. Qa4+ Kc3 44. Qc6+ Kxb3 45. Qxd5+ Qc4 46. Qf5 $15) ({And not} 42... Qxh3 43. Qe8+ Kxd4 44. b4 $17) 43. Kb6 {[%emt 0:00:05]} (43. Kc6 {was the only chance.}) 43... Qe6+ $2 {[%emt 0:00:03]} ({Inferior is} 43... Kxd4 44. Qa1+ Kd3 45. Kc5 $11) ({Black should play} 43... Qf6+ $19 44. Qc6 Qxd4+ 45. Ka5 Qa1+ 46. Kb5 d4) 44. Qc6 {[%emt 0:00:07] The position is equal.} Qxc6+ {[%emt 0:00:12]} 45. Kxc6 {[%emt 0:00:01] Hoping for b4.} Kxd4 $11 {[%emt 0:00:01] K3P-KPP} 46. b4 {[%emt 0:00:00] Threatening mate with b5.} Kc4 {[%emt 0:00:02]} 47. b5 {[%emt 0:00:01] Intending b6 and mate.} d4 {[%emt 0:00:02]} 48. b6 {[%emt 0:00:01] White wants to mate with b7.} d3 {[%emt 0:00:00]} 49. b7 {[%emt 0:00:00]} d2 {[%emt 0:00:01]} 50. b8=Q {[%emt 0:00:02] White threatens Qb1 and mate.} d1=Q {[%emt 0:00:02] Prevents Qb1.} 51. Qb5+ {[%emt 0:00:06]} Kc3 {[%emt 0:00:04]} 52. Qc5+ {[%emt 0:00:05]} Kb2 {[%emt 0:00:03]} 53. Qe5+ {[%emt 0:00:04]} Kc2 {[%emt 0:00:03]} 54. Qc5+ {[%emt 0:00:05]} Kb2 {[%emt 0:00:02] ( -> ...Qc2)} 55. Qb4+ {[%emt 0:00:01]} Kc1 {[%emt 0:00:04] aiming for ...Qc2+.} 56. Qc4+ $2 {[%emt 0:00:24][%mdl 40960] Weighted Error Value: White=0.74/Black=0.44. An unexpected result.} (56. Qa3+ $11 Kd2 57. Qb4+ Kc1 58. Qa3+ Kb1 59. Qb4+ Kc1) 1/2-1/2

[Event "Women Accentus DAQ Blitz 2022"]
[Site "Biel"]
[Date "2022.07.17"]
[Round "10.4"]
[White "Ciarletta, Iris"]
[Black "Moracchini, Margaux"]
[Result "1-0"]
[ECO "E70"]
[WhiteElo "1717"]
[BlackElo "1937"]
[Annotator "TA"]
[PlyCount "149"]
[EventDate "2022.07.17"]
[EventType "tourn"]
[EventCountry "SUI"]
[SourceTitle "playchess.com"]
[Source "ChessBase"]
[SourceQuality "1"]
[TimeControl "180+2"]

{[%evp 17,149,31,28,25,22,22,116,115,439,436,431,430,434,426,449,415,420,408,413,413,425,414,605,627,609,610,658,617,616,614,610,602,619,666,672,656,668,667,663,663,643,655,635,663,792,799,762,595,602,599,572,536,608,599,604,603,582,474,459,440,545,545,540,512,448,297,300,227,227,227,358,282,308,290,277,200,340,341,607,33,672,672,672,672,672,665,665,665,665,665,665,665,672,672,672,672,29968,672,672,672,672,672,29977,29978,29978,672,29973,29974,29977,437,29985,29986,29986,29987,29987,29986,29985,29986,29987,29988,29988,29988,29989,29989,29989,29989,29990,29991,29994,29991,29992,29991,29994,497]} 1. d4 {[%emt 0:00:02] Szabo,Kr} Nf6 {[%emt 0:00:02]} 2. c4 {[%emt 0:00:01]} g6 {[%emt 0:00:02]} 3. Nc3 {[%emt 0:00:01]} Bg7 {[%emt 0:00:01]} 4. e4 {[%emt 0:00:01]} d6 {[%emt 0:00:00]} 5. Nge2 {[%emt 0:00:01]} O-O {[%emt 0:00:05]} 6. Ng3 {[%emt 0:00:01]} e5 {[%emt 0:00:07]} 7. d5 {[%emt 0:00:01]} a5 {[%emt 0:00:10]} 8. Be2 {[%emt 0:00:02]} Na6 {[%emt 0:00:03]} 9. h4 {[%emt 0:00:01]} h5 {[%emt 0:00:16]} 10. Bg5 {[%emt 0:00:02][%cal Re2h5] E70: King's Indian: Miscellaneous lines with 4 e4, including 5 Nge2 and 5 Bd3 0-0 6 Nge2.} Qe8 {[%emt 0:00:20]} 11. Qd2 {[%emt 0:00:12] [#]} Bg4 $146 {[%emt 0:00:28]} (11... Bd7 $11 {keeps the balance.}) ({Predecessor:} 11... Kh7 12. f3 Ng8 13. Nb5 b6 14. a3 Bd7 15. b4 f6 16. Be3 f5 17. exf5 gxf5 18. Bg5 e4 19. Rb1 exf3 20. gxf3 axb4 21. axb4 Bxb5 22. cxb5 {1-0 (35) Aronian,L (2794)-Naiditsch,A (2701) Karlsruhe/Baden-Baden 2018 CBM 184 [Szabo,Kr]}) 12. Bxf6 $16 {[%emt 0:00:09] White is better.} Bxe2 $4 {[%emt 0:00:05][%mdl 8192] [#]} (12... Bxf6 $16 {is a better chance.} 13. Bxg4 hxg4) 13. Bxg7 $18 {[%emt 0:00:02]} ({Inferior is} 13. Kxe2 Bxf6 14. Rh3 Qe7 $15) 13... Kxg7 {[%emt 0:00:01]} 14. Qxe2 {[%emt 0:00:01]} ({Don't play} 14. Kxe2 Qe7 15. b3 Rfe8 $18) 14... Qd7 {[%emt 0:00:08]} 15. Qe3 {[%emt 0:00:06]} Qg4 {[%emt 0:00:03]} 16. Qf3 {[%emt 0:00:05]} Qxf3 {[%emt 0:00:05]} 17. gxf3 {[%emt 0:00:01]} Nc5 {[%emt 0:00:04]} 18. Kd2 {[%emt 0:00:04]} Kh6 {[%emt 0:00:05]} 19. Rag1 {[%emt 0:00:02]} f5 {[%emt 0:00:28]} (19... a4 $142 20. Nge2 Rfe8) 20. exf5 gxf5 {[%emt 0:00:01]} 21. Nge2 {[%emt 0:00:05][%cal Bg3e2,Be2g1,Bg1h3,Bh3g5,Bg5e6,Be6g7,Bg7e8][%mdl 32]} Rg8 {[%emt 0:00:02]} 22. Rxg8 {[%emt 0:00:05]} Rxg8 {[%emt 0:00:00]} 23. Rg1 {[%emt 0:00:06] Inhibits Rg2.} Rxg1 {[%emt 0:00:02]} 24. Nxg1 {[%emt 0:00:01]} Kg6 {[%emt 0:00:08]} 25. Nb5 {[%emt 0:00:01]} Na6 {[%emt 0:00:01]} 26. Nh3 {[%emt 0:00:06]} Kf6 {[%emt 0:00:07]} 27. Ng5 {[%emt 0:00:01]} Ke7 {[%emt 0:00:06]} 28. Ne6 {[%emt 0:00:08]} c6 {[%emt 0:00:01]} 29. Nc3 {[%emt 0:00:05]} cxd5 {[%emt 0:00:28]} 30. cxd5 {[%emt 0:00:03]} Nb8 {[%emt 0:00:06]} 31. Ng7 {[%emt 0:00:03][%csl LRf5,LRh5]} Kf6 {[%emt 0:00:01]} 32. Ne8+ {[%emt 0:00:03]} Ke7 {[%emt 0:00:02]} 33. Nc7 {[%emt 0:00:02]} Nd7 {[%emt 0:00:06]} 34. N7b5 {[%emt 0:00:07]} Nf8 {[%emt 0:00:03]} 35. Ne2 {[%emt 0:00:05]} Ng6 {[%emt 0:00:01]} 36. Ng3 {[%emt 0:00:01][%csl LRf5,LRh5]} Nxh4 {[%emt 0:00:02]} 37. Nxh5 {[%emt 0:00:05]} Nxf3+ {[%emt 0:00:01]} 38. Ke3 {[%emt 0:00:02]} Ng5 {[%emt 0:00:03]} 39. f4 {[%emt 0:00:04]} Nf7 {[%emt 0:00:08]} 40. Ng3 {[%emt 0:00:05]} Kf6 {[%emt 0:00:02]} 41. fxe5+ {[%emt 0:00:03]} Kxe5 {[%emt 0:00:03]} 42. Ne2 {[%emt 0:00:03] Inhibits f4+. Threatens to win with Nec3.} Kxd5 {[%emt 0:00:03]} 43. Nf4+ {[%emt 0:00:04]} Ke5 {[%emt 0:00:03]} (43... Kc4 $142) 44. Nc3 {[%emt 0:00:02]} Nd8 {[%emt 0:00:07]} 45. Ncd5 {[%emt 0:00:04]} Nc6 {[%emt 0:00:03]} 46. a3 {[%emt 0:00:05]} b5 {[%emt 0:00:02]} (46... Nd4 {was worth a try.} 47. Nb6 Nc2+ 48. Kf3 Ne1+ 49. Ke3 Nc2+ 50. Kd2 Nd4) 47. Nc7 {[%emt 0:00:09]} b4 $2 {[%emt 0:00:01]} (47... Na7 48. Nd3+ Kf6) 48. axb4 $2 {[%emt 0:00:04]} (48. Nd3+ $18 Kf6 49. axb4) 48... axb4 $2 {[%emt 0:00:01][%mdl 8192]} (48... Nxb4 $14 49. Ng6+ Kf6) 49. Nd3+ {[%emt 0:00:02]} Kf6 {[%emt 0:00:03]} 50. Nd5+ {[%emt 0:00:01]} Ke6 {[%emt 0:00:02]} 51. N5xb4 {[%emt 0:00:01]} Na5 {[%emt 0:00:05]} 52. Nf4+ {[%emt 0:00:04]} Ke5 {[%emt 0:00:03]} 53. Nbd3+ {[%emt 0:00:01]} Kf6 {[%emt 0:00:01]} 54. Kd4 {[%emt 0:00:03]} Ke7 {[%emt 0:00:02]} 55. Kd5 {[%emt 0:00:05] [#] Strongly threatening Ne6.} Kd7 {[%emt 0:00:04]} 56. b4 {[%emt 0:00:03]} Nb7 {[%emt 0:00:02]} 57. Ng6 {[%emt 0:00:05]} (57. Ne6 $142 Kc8 58. Kc6 Kb8 59. Nd4 f4 60. Kd7 Ka7 61. Kc7 Ka6 62. b5+ Ka5 63. Kxb7) 57... Nd8 {[%emt 0:00:01]} 58. Ndf4 {[%emt 0:00:05] And now Nf8+ would win.} Nf7 {[%emt 0:00:03]} 59. Nh4 {[%emt 0:00:08]} Ng5 {[%emt 0:00:01]} 60. Nxf5 {[%emt 0:00:03]} Nf7 {[%emt 0:00:02]} 61. Nd4 {[%emt 0:00:02]} (61. b5 $142 Kc7 62. Ne6+ Kb6 63. Ned4 Kc7 64. Ne3 Kc8 65. Nc4 Kd7 66. Nf5) 61... Kc7 {[%emt 0:00:02]} 62. Nd3 {[%emt 0:00:09] Against Ne5} Kb6 {[%emt 0:00:04]} 63. Nf5 {[%emt 0:00:05]} (63. Nb2 $142 Kb7 64. Nc4 Kc7 65. Nb5+ Kb8 66. Ncxd6 Nh6 67. Nd4 Kc7 68. Kc5) 63... Kb5 {[%emt 0:00:01]} (63... Nd8 $18 64. Nd4 (64. Nxd6 Nc6 $11) 64... Nf7) 64. Nxd6+ {[%emt 0:00:01] White mates.} Nxd6 {[%emt 0:00:01]} 65. Kxd6 {[%emt 0:00:01]} Kb6 {[%emt 0:00:00]} 66. Kd5 {[%emt 0:00:03]} Kb5 67. Kd4 {[%emt 0:00:00]} Kb6 {[%emt 0:00:01]} 68. Kc4 {[%emt 0:00:01]} Kc6 {[%emt 0:00:01]} 69. b5+ {[%emt 0:00:01]} Kb6 {[%emt 0:00:00]} 70. Kb4 {[%emt 0:00:01]} Kc7 {[%emt 0:00:01]} 71. Kc5 Kb7 {[%emt 0:00:02]} 72. Ne5 {[%emt 0:00:02]} Ka8 {[%emt 0:00:00]} 73. Kb6 {[%emt 0:00:02]} Kb8 {[%emt 0:00:00]} 74. Nd7+ {[%emt 0:00:01]} Ka8 75. Kc7 {[%emt 0:00:03] Black did not feel at home in the position after the opening.  Weighted Error Value: White=0.05 (flawless) /Black=0.53} (75. Kc6 $142 Ka7 76. b6+ Ka6 77. b7 Ka5 78. b8=Q Ka4 79. Nc5+ Ka5 80. Qb6#) 1-0

[Event "Women Accentus DAQ Blitz 2022"]
[Site "Biel"]
[Date "2022.07.17"]
[Round "11.1"]
[White "Ciarletta, Iris"]
[Black "Cornileau, Juliette"]
[Result "1-0"]
[ECO "E51"]
[WhiteElo "1717"]
[BlackElo "1900"]
[Annotator "TA"]
[PlyCount "117"]
[EventDate "2022.07.17"]
[EventType "tourn"]
[EventCountry "SUI"]
[SourceTitle "playchess.com"]
[Source "ChessBase"]
[SourceQuality "1"]
[TimeControl "180+2"]

{[%evp 17,117,-17,-16,-14,0,0,0,0,2,-78,0,-5,6,0,5,-10,-3,0,8,-64,80,75,74,78,112,20,9,-109,-104,-105,-116,-112,-106,-92,-114,-179,-166,-203,-203,-249,-125,-125,-118,-178,-162,-159,-166,-174,-118,-193,-125,-164,-76,-79,-8,-98,-97,-80,497,494,492,473,688,682,867,859,29967,29970,5624,1761,29988,29988,29991,29978,29983,29984,29988,29989,29985,29986,29980,29981,29986,29976,29974,29976,29984,29984,29988,29987,29993,29994,29998,29981,29981,29982,29981,1224,29983,29984,29990,29991]} 1. d4 {[%emt 0:00:01]} Nf6 {[%emt 0:00:02]} 2. c4 {[%emt 0:00:01]} e6 {[%emt 0:00:01][%cal Be7e6,Be6d5][%mdl 32]} 3. Nc3 {[%emt 0:00:03]} Bb4 {[%emt 0:00:01]} 4. Bd2 {[%emt 0:00:01]} d5 {[%emt 0:00:11]} 5. Nf3 {[%emt 0:00:06]} c5 {[%emt 0:00:09]} 6. cxd5 {[%emt 0:00:07]} exd5 {[%emt 0:00:05]} 7. e3 {[%emt 0:00:03]} O-O {[%emt 0:00:05]} 8. dxc5 {[%emt 0:00:02]} Bxc5 {[%emt 0:00:03]} 9. Be2 {[%emt 0:00:02]} Nc6 {[%emt 0:00:03]} 10. O-O {[%emt 0:00:03] E51: Nimzo-Indian: Rubinstein: 4...0-0 5 Nf3 d5.} d4 {[%emt 0:00:07]} 11. exd4 {[%emt 0:00:01]} Nxd4 {[%emt 0:00:02]} 12. Nxd4 {[%emt 0:00:07] The position is equal.} Bxd4 {[%emt 0:00:01] [#]} 13. Nb5 $146 {[%emt 0:00:08]} (13. Bf4 $11) ({Predecessor:} 13. Qc2 Re8 14. Bf3 Rb8 15. Rad1 Qc7 16. Qb3 Be6 17. Nd5 Qd6 18. Bf4 Bxd5 19. Bxd6 Bxf2+ 20. Rxf2 Bxb3 21. axb3 Rbd8 22. Bb4 Rxd1+ 23. Bxd1 Re1+ 24. Bxe1 {1-0 (24) Aliyarli,S (1208)-Loubieres,F (1703) Europe Echecs INT 2021}) 13... Bb6 {[%emt 0:00:10]} (13... Bxb2 $17 14. Rb1 Be5) 14. Bf3 {[%emt 0:00:11]} Qd3 {[%emt 0:00:23]} 15. Nc3 {[%emt 0:00:13]} Qg6 {[%emt 0:00:35]} 16. Bf4 {[%emt 0:00:08]} Bg4 {[%emt 0:00:21]} 17. Bxg4 {[%emt 0:00:12]} Nxg4 {[%emt 0:00:15]} 18. h3 {[%emt 0:00:07]} ({Better is} 18. Nd5 $11 Qe4 19. Nxb6 Qxf4 20. g3) 18... Nh6 {[%emt 0:00:24]} (18... Nxf2 $1 $15 {keeps the upper hand.} 19. Rxf2 Bxf2+ 20. Kxf2 Qb6+ 21. Kg3 Qxb2) 19. Qf3 $16 {[%emt 0:00:04]} Nf5 {[%emt 0:00:02][%cal Bh6f5,Bf5d4,Bd4e2][%mdl 32]} 20. Qxb7 {[%emt 0:00:09]} Rac8 {[%emt 0:00:14]} 21. Qf3 {[%emt 0:00:07]} (21. Nd5 $16) 21... Nd4 $11 {[%emt 0:00:04]} 22. Qg4 {[%emt 0:00:09]} (22. Qd1 $1 $11) 22... Qxg4 $17 {[%emt 0:00:02]} 23. hxg4 {[%emt 0:00:01] [#]} Rxc3 $1 {[%emt 0:00:01][%mdl 576] Remove Defender} 24. bxc3 {[%emt 0:00:07]} Ne2+ {[%emt 0:00:02]} 25. Kh2 {[%emt 0:00:01]} Nxf4 {[%emt 0:00:02]} 26. f3 {[%emt 0:00:07]} (26. a4 $17) 26... g6 {[%emt 0:00:06]} 27. Rfe1 {[%emt 0:00:03] [#]} Rc8 $1 {[%emt 0:00:03]} 28. Re4 {[%emt 0:00:08] [#]} Bc7 {[%emt 0:00:05]} ({Black should try} 28... Rxc3 $1 $19 {[%cal Oc3c2]} 29. Rxf4 Bc7) 29. g3 {[%emt 0:00:02]} Ne6 {[%emt 0:00:04]} 30. Rd1 {[%emt 0:00:09]} (30. Ree1 $17) 30... Ng5 {[%emt 0:00:01]} 31. Re3 {[%emt 0:00:03]} Bb6 {[%emt 0:00:05]} 32. Red3 {[%emt 0:00:03]} Kg7 {[%emt 0:00:01]} (32... Re8 $19 {Hoping for ...Re2+.} 33. R1d2 Re1) 33. Re1 {[%emt 0:00:06]} (33. Kg2 $17) 33... Ne6 {[%emt 0:00:03]} (33... Rd8 $19 34. Rxd8 Nxf3+ 35. Kh3 Bxd8) 34. f4 {[%emt 0:00:12]} h5 {[%emt 0:00:09]} (34... h6 $19 {and Black stays clearly on top. ...Rc4 is the strong threat.} 35. Rd7 Kg8) 35. gxh5 {[%emt 0:00:05]} Rh8 {[%emt 0:00:01]} (35... gxh5 $17 {[%cal Oh5h4]} 36. Rd7 Kg8) 36. Kg2 {[%emt 0:00:03]} (36. Re5 $1 $11 {keeps the balance.}) 36... Rxh5 {[%emt 0:00:02]} 37. Rd7 {[%emt 0:00:04] aiming for Rxe6.} Ra5 $2 {[%emt 0:00:04][%mdl 8192] This costs Black the game.} 38. Rxe6 $1 $18 {[%emt 0:00:03]} Rxa2+ {[%emt 0:00:01][%mdl 4096] Endgame KRR-KRB} 39. Kh3 {[%emt 0:00:02]} Ra1 {[%emt 0:00:02]} (39... Ra5 $142 40. Kg4 Rf5) 40. Ree7 {[%emt 0:00:03]} Rh1+ {[%emt 0:00:05]} 41. Kg4 {[%emt 0:00:02]} Kg8 {[%emt 0:00:03]} 42. Rxf7 {[%emt 0:00:03]} Re1 {[%emt 0:00:03]} 43. Rg7+ {[%emt 0:00:03]} (43. Kg5 $142 Re6 44. Rg7+ Kf8 45. Rxg6) 43... Kh8 {[%emt 0:00:02]} 44. Rxg6 {[%emt 0:00:02]} Bf2 {[%emt 0:00:02]} 45. Kf3 {[%emt 0:00:06]} Bb6 {[%emt 0:00:01]} 46. Rc6 {[%emt 0:00:09]} Re3+ {[%emt 0:00:02]} 47. Kg4 {[%emt 0:00:03]} Re8 {[%emt 0:00:02]} 48. c4 {[%emt 0:00:05]} Rg8+ {[%emt 0:00:01]} 49. Kf3 {[%emt 0:00:01][%cal Rc6h6]} Re8 {[%emt 0:00:03]} 50. Rb7 {[%emt 0:00:08]} Bd4 {[%emt 0:00:02]} 51. f5 {[%emt 0:00:09]} a5 {[%emt 0:00:01]} 52. Rd6 {[%emt 0:00:10]} Bc5 {[%emt 0:00:04]} 53. Rd5 {[%emt 0:00:01]} Bb4 {[%emt 0:00:01]} 54. f6 {[%emt 0:00:03]} Rf8 {[%emt 0:00:02]} 55. Kg4 {[%emt 0:00:04]} Rxf6 {[%emt 0:00:03]} 56. Rd8+ {[%emt 0:00:02]} Bf8 {[%emt 0:00:02]} 57. Rb5 {[%emt 0:00:05]} (57. Kg5 $142 Rf3 58. g4 a4 59. c5 a3 60. c6 a2 61. Ra7 a1=Q 62. Rxa1) 57... Rg6+ {[%emt 0:00:02]} 58. Rg5 {[%emt 0:00:01]} Rxg5+ {[%emt 0:00:01]} 59. Kxg5 {Weighted Error Value: White=0.33/Black=0.84} 1-0